Cogmind - Beta 9.3 @@@ ROGUE MODE // 2019.12.19 @ 22:51:09 Player: HybriD Result: Destroyed by G-47 Trooper with Particle Gun Performance ------------- Evolutions (3) 1500 Regions Visited (8) 1600 Robots Destroyed (35) 175 Value Destroyed (955) 955 Prototype IDs (6) 120 Alien Tech Used (0) 0 Bonus (0) 0 TOTAL SCORE: 4350 Bonus ------- None Cogmind --------- Core Integrity 0/700 Matter 290/300 Energy 37/100 System Corruption 1% Temperature Cool (9) Movement Rolling (100) Location -7/Storage Parts ------- > --- POWER (2) -------- (None) > --- PROPULSION (4) --- Armored Huge Wheel > --- UTILITY (5) ------ (None) > --- WEAPON (2) ------- (None) > --- INVENTORY (4) ---- VTOL Module Medium Storage Unit Peak State ------------ > --- POWER ------------ Nuclear Core > --- PROPULSION ------- Armored Huge Wheel Improved Airjet Xenon Bombardment Thruster > --- UTILITY ---------- Medium Storage Unit Advanced Weight Redist. System ECM Suite Layered Light Armor Plating Hacking Suite > --- WEAPON ----------- Heavy Laser Flak Gun > --- INVENTORY -------- Armored Huge Wheel Cesium-ion Thruster Improved Spread Laser Advanced Assault Cannon Advanced Assault Cannon [Rating: 42] Favorites ----------- Power Ion Engine Engine Ion Engine Power Core Nuclear Core Propulsion VTOL Module Wheel Wheel Hover Unit Hover Unit Flight Unit VTOL Module Utility Medium Storage Unit Device ECM Suite Storage Medium Storage Unit Hackware Hacking Suite Protection Layered Light Armor Plating Weapon Advanced Assault Cannon Energy Gun Heavy Laser Ballistic Gun Flak Gun Ballistic Cannon Advanced Assault Cannon Launcher Advanced EMP Blaster Build | -11 -10 -9 -9 -9 -8 -8 -7 -7 ------- Run | Scr Mat Mat Min Exi Min Mat Fac Sto Slots Evolved 6 | . . 2 . . . 2 2 . Power 1 | . . . . . . 1 . . Propulsion 2 | . . 1 . . . 1 . . Utility 3 | . . 1 . . . . 2 . Weapon . | . . . . . . . . . Parts Attached 88 | 4 14 6 1 2 1 30 15 15 Power 9 | . 1 . 1 . . 4 1 2 Engine 6 | . 1 . 1 . . 3 . 1 Core 3 | . . . . . . 1 1 1 Reactor . | . . . . . . . . . Propulsion 27 | 2 4 1 . . 1 7 6 6 Treads . | . . . . . . . . . Leg . | . . . . . . . . . Wheel 8 | 2 . . . . . . 5 1 Hover 2 | . . . . . . 1 . 1 Flight 17 | . 4 1 . . 1 6 1 4 Utility 16 | 1 2 2 . 2 . 3 3 3 Device 6 | . 1 . . 1 . 2 . 2 Storage 7 | 1 1 2 . 1 . . 2 . Processor . | . . . . . . . . . Hackware 1 | . . . . . . 1 . . Protection 2 | . . . . . . . 1 1 Artifact . | . . . . . . . . . Weapon 36 | 1 7 3 . . . 16 5 4 Energy Gun 16 | 1 4 . . . . 7 2 2 Energy Cannon . | . . . . . . . . . Ballistic Gun 7 | . 3 3 . . . . 1 . Ballistic Cannon 12 | . . . . . . 8 2 2 Launcher 1 | . . . . . . 1 . . Special Weapon . | . . . . . . . . . Impact Weapon . | . . . . . . . . . Slashing Weapon . | . . . . . . . . . Piercing Weapon . | . . . . . . . . . Special Melee Weapon . | . . . . . . . . . Unidentified Prototypes 3 | . . . . . . 1 1 1 Parts Lost 28 | . 1 1 . . 1 6 2 17 Power 7 | . . 1 . . . 1 2 3 Propulsion 12 | . 1 . . . 1 5 . 5 Utility 5 | . . . . . . . . 5 Weapon 4 | . . . . . . . . 4 Highest Loss Streak 7 | . 1 1 . . 1 3 2 7 Average Slot Usage (%) 64 | . 69 73 66 66 60 59 67 62 Engine 7 | . 12 11 11 11 11 8 . 3 Core 2 | . . . . . . 1 6 5 Wheel 2 | . 2 . . . . . 9 5 Hover 1 | . . . . . . 4 . 2 Flight 21 | . 24 33 33 33 33 22 8 7 Device 8 | . 8 11 11 11 5 1 15 11 Storage 7 | . 7 6 11 11 11 8 3 5 Hackware 2 | . . . . . . 1 7 5 Protection 1 | . . . . . . . 3 3 Energy Gun 4 | . 10 5 . . . 4 2 5 Ballistic Gun 1 | . 2 6 . . . . 2 3 Ballistic Cannon 1 | . . . . . . 4 3 . Naked Turns 2 | . . . . . . . . 2 Heaviest Build 34 | 6 15 14 14 14 14 29 28 34 Greatest Support 39 | 26 26 14 14 14 14 18 39 37 Greatest Overweight (x) 9 | 1 1 . . . 1 2 1 9 Average Overweight (x) . | . . . . . . . . . Largest Inventory Capacity 28 | 6 10 10 8 28 8 8 8 8 Average Capacity 6 | 5 5 6 8 8 8 7 6 7 Most Carried 8 | 5 6 6 6 7 5 8 7 8 Average Carried 4 | 3 4 4 5 5 4 5 3 5 Final Capacity 8 | 6 4 8 8 8 8 4 8 4 Final Carried 6 | 4 4 6 5 5 5 3 6 2 Class Distribution -------------------- 95% | Mutant 3% | Scavenger-Sprinter Dominant Class ---------------- Mutant | -10/Materials Mutant | -9/Materials Mutant | -9/Mines Mutant | -9/Exiles Mutant | -8/Mines Mutant | -8/Materials Mutant | -7/Factory Mutant | -7/Storage Resources | -11 -10 -9 -9 -9 -8 -8 -7 -7 ----------- Run | Scr Mat Mat Min Exi Min Mat Fac Sto Matter Collected 1317 | 216 85 90 47 . . 435 25 419 Remotely . | . . . . . . . . . Salvage Created 985 | . 103 90 . . . 438 25 329 Parts 68 | . 12 7 . . . 36 1 12 Haulers Intercepted . | . . . . . . . . . Recyclers Shooed 1 | . . . . . . 1 . . Parts Field Recycled . | . . . . . . . . . Retrieved Matter . | . . . . . . . . . Parts Self-Destructed . | . . . . . . . . . Prevented . | . . . . . . . . . Kills | -11 -10 -9 -9 -9 -8 -8 -7 -7 ------- Run | Scr Mat Mat Min Exi Min Mat Fac Sto Combat Hostiles Destroyed 30 | . 3 3 . . . 14 1 9 Guns 17 | . 3 3 . . . 5 . 6 Cannons 12 | . . . . . . 8 1 3 AOE 1 | . . . . . . 1 . . Classes Destroyed 6 | . 3 1 . . . 2 . . Builder 3 | . . . . . . 3 . . Tunneler 1 | . 1 . . . . . . . Watcher 1 | . 1 . . . . . . . Swarmer 15 | . 3 2 . . . 7 . 3 Grunt 7 | . . . . . . 3 . 4 Sentry 8 | . . 1 . . . 4 1 2 Best Kill Streak 5 | . 4 2 . . . 5 1 3 Combat Bots Only 4 | . 3 2 . . . 4 1 3 Max Kills in Single Turn 2 | . 1 1 . . . 2 1 1 Gunslinging . | . . . . . . . . . Exploded 1 | . . . . . . 1 . . Melee . | . . . . . . . . . Uniques/NPCs Destroyed . | . . . . . . . . . Combat | -11 -10 -9 -9 -9 -8 -8 -7 -7 -------- Run | Scr Mat Mat Min Exi Min Mat Fac Sto Damage Taken 3498 | . 96 208 . . 35 805 218 2136 Core 949 | . 9 32 . . . 198 88 622 Absorbed by Shields . | . . . . . . . . . Core Remaining (%) 88 | 100 96 . . . 92 64 . . Volleys Fired 94 | . 9 8 . . . 36 6 35 Largest 2 | . 2 2 . . . 2 1 2 Hottest 144 | . 68 68 . . . 119 48 144 Shots Fired 157 | . 17 16 . . . 66 6 52 Gun 111 | . 17 16 . . . 33 . 45 Cannon 46 | . . . . . . 33 6 7 Launcher . | . . . . . . . . . Special . | . . . . . . . . . Kinetic 76 | . 8 15 . . . 33 6 14 Thermal 55 | . . . . . . 17 . 38 Explosive . | . . . . . . . . . Electromagnetic 26 | . 9 1 . . . 16 . . Robot Hit Streak 15 | . 7 7 . . . 13 7 15 Robot Miss Streak 7 | . 7 5 . . . 6 . 4 Penetration Max . | . . . . . . . . . Secondary Targets 1 | . . 1 . . . . . . Max Gunslinging Chain 1 | . . 1 . . . . . . Shots Hit Robots 104 | . 10 7 . . . 35 6 46 Core Hits 64 | . 6 5 . . . 20 2 31 Critical Hits 1 | . . . . . . 1 . . Critical Kills . | . . . . . . . . . Critical Parts Destroyed 1 | . . . . . . 1 . . Melee Attacks . | . . . . . . . . . Impact . | . . . . . . . . . Slashing . | . . . . . . . . . Piercing . | . . . . . . . . . Sneak Attacks . | . . . . . . . . . Combat Hostiles . | . . . . . . . . . Follow-up Attacks . | . . . . . . . . . Damage Inflicted 2156 | . 135 93 . . . 923 165 840 Guns 1217 | . 135 93 . . . 284 . 705 Cannons 845 | . . . . . . 545 165 135 Explosions 94 | . . . . . . 94 . . Melee . | . . . . . . . . . Ramming . | . . . . . . . . . Kinetic 1080 | . 71 78 . . . 545 165 221 Thermal 913 | . . . . . . 294 . 619 Explosive . | . . . . . . . . . Electromagnetic 163 | . 64 15 . . . 84 . . Impact . | . . . . . . . . . Slashing . | . . . . . . . . . Piercing . | . . . . . . . . . Highest Corruption 1 | . . . . . . . . 1 Average Corruption 1 | . . . . . . . . 1 Corruption Purged . | . . . . . . . . . Overload Shots . | . . . . . . . . . Overflow Damage 10 | . . . . . . 10 . . Projectiles 10 | . . . . . . 10 . . Explosions . | . . . . . . . . . Melee . | . . . . . . . . . Knockbacks 4 | . . . . . . 2 . 2 Impact . | . . . . . . . . . Kinetic 3 | . . . . . . 2 . 1 Secondary 1 | . . . . . . . . 1 Self-Inflicted Damage . | . . . . . . . . . Shots . | . . . . . . . . . Rammed . | . . . . . . . . . Targets Rammed . | . . . . . . . . . Kicked . | . . . . . . . . . Crushed . | . . . . . . . . . Highest Temperature 413 | . 47 15 . . . 348 43 413 Average Temperature 117 | . 23 10 . . . 95 30 176 Received Heat Transfer 1050 | . . 30 . . . 225 72 723 Effects 5 | . . . . . . 1 . 4 Interference 4 | . . . . . . 1 . 3 Short Circuit 1 | . . . . . . . . 1 Siege Activations . | . . . . . . . . . Robots Corrupted 1 | . . . . . . 1 . . Combat Hostiles . | . . . . . . . . . Parts Fried 4 | . . . . . . 4 . . Impact Corruptions . | . . . . . . . . . Robots Melted . | . . . . . . . . . Combat Hostiles . | . . . . . . . . . Parts Melted 5 | . . . . . . 3 . 2 Heat Transferred 1417 | . . . . . . 544 . 873 Parts Sabotaged . | . . . . . . . . . Parts Stolen . | . . . . . . . . . Parts Stripped . | . . . . . . . . . Power Chain Reactions 1 | . . . . . . 1 . . Missiles Intercepted . | . . . . . . . . . Alert | -11 -10 -9 -9 -9 -8 -8 -7 -7 ------- Run | Scr Mat Mat Min Exi Min Mat Fac Sto Peak Influence 398 | . 110 220 85 . 5 398 145 300 Average Influence 133 | . 61 113 85 . 2 182 140 175 Maximum Alert Level 1 | . . 1 . . . 1 . 1 Low Security (%) 78 | 100 100 95 100 . 100 57 100 57 Level 1 21 | . . 4 . . . 42 . 42 Level 2 . | . . . . . . . . . Level 3 . | . . . . . . . . . Level 4 . | . . . . . . . . . Level 5 . | . . . . . . . . . High Security . | . . . . . . . . . Max Security . | . . . . . . . . . Squads Dispatched 9 | . 1 2 . . . 3 . 3 Investigation 2 | . 1 1 . . . . . . Extermination 1 | . . . . . . . . 1 Reinforcement 6 | . . 1 . . . 3 . 2 Assault . | . . . . . . . . . Garrison . | . . . . . . . . . Intercept . | . . . . . . . . . Construction Impeded 1 | . . . . . . 1 . . Haulers Reinforced . | . . . . . . . . . Stealth | -11 -10 -9 -9 -9 -8 -8 -7 -7 --------- Run | Scr Mat Mat Min Exi Min Mat Fac Sto Distress Signals 5 | . . 2 . . . 1 . 2 Communications Jammed . | . . . . . . . . . Distress Signals . | . . . . . . . . . Times Spotted 98 | . 8 18 . . 1 30 2 39 Peak Tracking Total 14 | . 5 9 . . 1 6 2 14 Tactical Retreats 13 | . 1 2 . . . 3 . 7 Traps | -11 -10 -9 -9 -9 -8 -8 -7 -7 ------- Run | Scr Mat Mat Min Exi Min Mat Fac Sto Traps Triggered 2 | . 1 1 . . . . . . Indirectly . | . . . . . . . . . Trap Hack Attempts . | . . . . . . . . . Triggered . | . . . . . . . . . Disarmed . | . . . . . . . . . Reprogrammed . | . . . . . . . . . Reused . | . . . . . . . . . Traps Extracted . | . . . . . . . . . Installed . | . . . . . . . . . Triggered . | . . . . . . . . . Machines | -11 -10 -9 -9 -9 -8 -8 -7 -7 ---------- Run | Scr Mat Mat Min Exi Min Mat Fac Sto Machines Disabled . | . . . . . . . . . Max in Single Turn . | . . . . . . . . . Machines Sabotaged . | . . . . . . . . . Garrisons Compromised 1 | . . . . . . . 1 . Overloaded Fab Kills . | . . . . . . . . . Fab Network Shutdowns . | . . . . . . . . . Hacking | -11 -10 -9 -9 -9 -8 -8 -7 -7 --------- Run | Scr Mat Mat Min Exi Min Mat Fac Sto Machines Accessed 14 | . 3 3 . 1 . 1 2 4 Terminals 11 | . 3 2 . . . 1 1 4 Fabricators 1 | . . . . . . . 1 . Repair Stations . | . . . . . . . . . Recycling Units 1 | . . 1 . . . . . . Scanalyzers . | . . . . . . . . . Garrison Access . | . . . . . . . . . Total Hacks 30 | . 8 5 . 1 . 4 3 9 Successful 17 | . 5 2 . 1 . 3 2 4 Failed 13 | . 3 3 . . . 1 1 5 Catastrophic 4 | . 1 1 . . . 1 . 1 Database Lockouts . | . . . . . . . . . Manual 6 | . . 1 . 1 . . 2 2 Terminals 27 | . 8 4 . . . 4 2 9 Fabricators 1 | . . . . . . . 1 . Repair Stations . | . . . . . . . . . Recycling Units 1 | . . 1 . . . . . . Scanalyzers . | . . . . . . . . . Garrison Access . | . . . . . . . . . Terminal Hacks 15 | . 5 1 . 1 . 3 1 4 Record 7 | . 3 . . 1 . 3 . . Robot Analysis 2 | . 1 . . . . . . 1 Prototype ID Bank 1 | . . 1 . . . . . . Branch Access Points 1 | . . . . . . . . 1 Alert Level 2 | . . . . . . . 1 1 Patrol Status 1 | . . . . . . . . 1 Recall Investigation 1 | . 1 . . . . . . . Fabricator Hacks 1 | . . . . . . . 1 . Network Status 1 | . . . . . . . 1 . Repair Station Hacks . | . . . . . . . . . Recycling Unit Hacks 1 | . . 1 . . . . . . Report Inventory 1 | . . 1 . . . . . . Scanalyzer . | . . . . . . . . . Garrison Access Hacks . | . . . . . . . . . Unauthorized Hacks . | . . . . . . . . . Terminals . | . . . . . . . . . Fabricators . | . . . . . . . . . Repair Stations . | . . . . . . . . . Recycling Units . | . . . . . . . . . Scanalyzers . | . . . . . . . . . Garrison Access . | . . . . . . . . . Data Cores Recovered . | . . . . . . . . . Used . | . . . . . . . . . Hacking Detections 11 | . 3 2 . . . 1 1 4 Full Trace Events . | . . . . . . . . . Feedback Events . | . . . . . . . . . Feedback Blocked . | . . . . . . . . . Robot Schematics Acquired . | . . . . . . . . . Robots Built . | . . . . . . . . . Matter . | . . . . . . . . . Time . | . . . . . . . . . Total Robot Build Rating . | . . . . . . . . . Part Schematics Acquired . | . . . . . . . . . Parts Built . | . . . . . . . . . Matter . | . . . . . . . . . Time . | . . . . . . . . . Total Part Build Rating . | . . . . . . . . . Parts Repaired . | . . . . . . . . . Time . | . . . . . . . . . Parts Recycled . | . . . . . . . . . Recycled Matter . | . . . . . . . . . Retrieved Matter . | . . . . . . . . . Retrieved Components . | . . . . . . . . . Parts Scanalyzed . | . . . . . . . . . Part Schematics Acquired . | . . . . . . . . . Parts Damaged . | . . . . . . . . . Bothacking | -11 -10 -9 -9 -9 -8 -8 -7 -7 ------------ Run | Scr Mat Mat Min Exi Min Mat Fac Sto Used RIF Installer . | . . . . . . . . . Robots Hacked . | . . . . . . . . . Non-combat . | . . . . . . . . . Combat . | . . . . . . . . . Robot Hacks Applied . | . . . . . . . . . Relay Couplers Released . | . . . . . . . . . Robots Rewired . | . . . . . . . . . Allies Hacked . | . . . . . . . . . Hacks Repelled . | . . . . . . . . . Allies | -11 -10 -9 -9 -9 -8 -8 -7 -7 -------- Run | Scr Mat Mat Min Exi Min Mat Fac Sto Total Allies 4 | . . . . . . . 4 . Largest Group 4 | . . . . . . . 4 . Highest-Rated Group 106 | . . . . . . . 106 . Highest-Rated Ally 31 | . . . . . . . 31 . Total Orders . | . . . . . . . . . Ally Attacks . | . . . . . . . . . Total Damage . | . . . . . . . . . Kills . | . . . . . . . . . Allies Corrupted . | . . . . . . . . . Allies Melted . | . . . . . . . . . Intel | -11 -10 -9 -9 -9 -8 -8 -7 -7 ------- Run | Scr Mat Mat Min Exi Min Mat Fac Sto Robot Analysis Total 2 | . 1 . . . . . . 1 Derelict Logs Recovered 1 | . . . 1 . . . . . Drone Launches . | . . . . . . . . . Drone Recoveries . | . . . . . . . . . Exploration | -11 -10 -9 -9 -9 -8 -8 -7 -7 ------------- Run | Scr Mat Mat Min Exi Min Mat Fac Sto Turns Passed 1952 | 41 227 197 84 222 78 471 273 359 Spaces Moved 2404 | 39 262 252 176 553 204 364 231 323 Core 30 | 17 . . . . . . . 13 Treads . | . . . . . . . . . Legs . | . . . . . . . . . Wheels 250 | 22 19 . . . . . 101 108 Hover 3 | . . . . . . . . 3 Flight 2121 | . 243 252 176 553 204 364 130 199 Fastest Speed 31 | 50 37 34 34 34 34 31 40 34 Average Speed 44 | 77 47 34 34 34 35 51 59 59 Slowest Speed 500 | 100 120 34 34 34 117 197 117 500 Overloaded Moves . | . . . . . . . . . Propulsion Burnouts . | . . . . . . . . . Robots Hopped 32 | . 1 1 . . 1 7 1 21 Cave-ins Triggered . | . . . . . . . . . Exploration Rate (%) 38 | 4 48 34 41 92 43 38 7 41 Regions Visited 8 Branch Regions 4 Pre-discovered Areas . | . . . . . . . . . Known Exits Taken . | . . . . . . . . . Unknown Exits Taken 8 | 1 1 1 1 1 1 1 1 . Scrap Searched 1 | . . . 1 . . . . . Spaces Dug . | . . . . . . . . . Terrain Destroyed 18 | . . . . . . 16 . 2 Melee . | . . . . . . . . . Projectile 14 | . . . . . . 12 . 2 AOE 4 | . . . . . . 4 . . Actions | -11 -10 -9 -9 -9 -8 -8 -7 -7 --------- Run | Scr Mat Mat Min Exi Min Mat Fac Sto Total 3106 | 48 349 348 200 587 208 587 362 417 Wait 428 | . 41 75 18 30 4 116 93 51 Move 2338 | 38 259 249 175 552 201 349 228 287 Hop 26 | . 1 1 . . 1 7 1 15 Pick Up 61 | 6 10 3 3 1 . 19 11 8 Fast Attach 6 | 2 2 1 . . . . 1 . Attach 74 | 2 8 5 1 2 1 28 14 13 Detach 35 | . 5 5 . 1 1 16 5 2 Swap 8 | . 4 . . . . 2 . 2 Drop 36 | . 10 1 3 1 . 14 3 4 Fire 94 | . 9 8 . . . 36 6 35 Melee . | . . . . . . . . . Ram . | . . . . . . . . . Kick . | . . . . . . . . . Crush . | . . . . . . . . . Escape Stasis . | . . . . . . . . . Rewire . | . . . . . . . . . Trap . | . . . . . . . . . Miscellaneous . | . . . . . . . . . Route ------- -11/Scrapyard -10/Materials -9/Materials -9/Mines -9/Exiles (discovered 2 exits: [*Min x2]) -8/Mines -8/Materials -7/Factory -7/Storage (discovered 1 exit: Rec) History --------- Turn | Location | Event 9 | -11/Scrapyard | Discovered new exit (range 15) 42 | -11/Scrapyard | Entered Materials 248 | -10/Materials | Discovered new exit (range 4) 269 | -10/Materials | Entered another Materials area 269 | -9/Materials | Evolved 2 slots: Propulsion x1, Utility x1 312 | -9/Materials | Build established: Mutant 463 | -9/Materials | Discovered new exit (range 10) 466 | -9/Materials | Entered Mines 477 | -9/Mines | Assisted by bots powering up and referring to "LRC-V3" 536 | -9/Mines | Learned Materials terminal intel 548 | -9/Mines | Deemed a non-threat by the Exiles lab entrance 548 | -9/Mines | Discovered new exit (range 5) 550 | -9/Mines | Entered Exiles 559 | -9/Exiles | Met 8R-AWN 571 | -9/Exiles | Discovered new exit (range 14) 584 | -9/Exiles | Met EX-HEX 604 | -9/Exiles | Met EX-BIN 637 | -9/Exiles | Met EX-DEC 685 | -9/Exiles | Visited The Gauntlet 768 | -9/Exiles | Discovered new exit (range 14) 772 | -9/Exiles | Entered Mines 784 | -8/Mines | Discovered new exit (range 11) 850 | -8/Mines | Entered Materials 850 | -8/Materials | Evolved 2 slots: Power x1, Propulsion x1 851 | -8/Materials | Loaded intel: 12 terminal locations 1312 | -8/Materials | Discovered new exit (range 16) 1321 | -8/Materials | Entered Factory 1321 | -7/Factory | Evolved 2 slots: Utility x2 1349 | -7/Factory | Lost 3 parts (3n) 1569 | -7/Factory | Discovered new exit (range 9) 1594 | -7/Factory | Entered Storage 1613 | -7/Storage | Identified exit to Recycling 1897 | -7/Storage | Lost 7 parts (1n3u3w) 1922 | -7/Storage | Core integrity fell below 50% 1947 | -7/Storage | Core integrity fell below 20% 1953 | -7/Storage | Destroyed by G-47 Trooper with Particle Gun Last Messages --------------- 01890_ Slug penetrates Wall. 01891_ W-25 Informer sends out distress signal. 01900_ Connecting with Terminal... 01902_ Lgt. Nuclear Core destroyed. 01902_ Slug penetrates P-60 Hacker. 01908_ C-30 ARC bursts open, deploying its payload. 01908_ H-55 Commando unfolds itself. 01916_ Slug penetrates Y-54 Guardian. 01916_ Acquired 109 matter. 01917_ Lgt. Deuterium Engine destroyed. 01919_ Penetrated by Slug. 01919_ Lyr. Light Armor Plating destroyed. 01919_ Y-54 Guardian suffers critical hit. 01919_ Door malfunctions. 01921_ Cesium-ion Thruster destroyed. 01925_ Slug penetrates Wall. 01928_ Connecting with Terminal... 01935_ VTOL Module destroyed. 01941_ Imp. Heat Sink destroyed. 01947_ Slug penetrates Wall. Map ----- +----------------------------------------------------+ | ?## """ ####/### ##### | | ?# """ + / ! | | ??# """ #" ################### | | ??# # "# ????????? | | ??# """ #" # """ ????????? | | ??# """ # / """ #???????? | | ??# """ / # """ #???????? | | ??# # # ""????????? | | ??######/### # Y"#???????? | | ??????# # ""#???????? | | ####### # [ #???????? | | # # ### ### ########???????? | | # # #?# #??##??????????????? | | #!! ! #Y #?# #??????????????????? | | #!! # ###/########???????????? | | # # # #???????????? | | # # Y# ##???????????? | | # # # "#???????????? | | # # # """"" T#???????????? | | # " " # # """"" "#???????????? | | # "R" #p # """"" ##???????????? | | # """ /hg/ ! #????????????? | | # #^g# #????????????? | | ?#### # ###########????????????? | | ????### T#?????????????????????? | | ??????# @##?????????????????????? | | ??????""""??????????????????????? | | ????????????????????????????????? | | ????????>???????????????????????? | | ????????????????????????????????? | | ????????????????????????????????? | | ????????????????????????????????? | | ????????????????????????????????? | | ????????????????????????????????? | | ????????????????????????????????? | | ????????????????????????????????? | | ????????????????????????????????? | | ????????????????????????????????? | | ????????????????????????????????? | | ????????????????????????????????? | | ????????????????????????????????? | | | | | | | | | | | | | | | | | | | +----------------------------------------------------+ Best States ------------- Heat Dissipation 48 Energy Generation 23 Energy Capacity 280 Matter Stores 300 Matter Capacity 300 Sight Range 16 Terrain Scan Density 10 ECM Strength 1 Additional Mass Support 9 Armor Coverage 150 Evasion (%) 63 Offensive Hacking 10 Item Schematics ----------------- None Robot Schematics ------------------ None Fabricated ------------ Nothing Alien Tech Used ----------------- None Achievements -------------- None Challenges ------------ None Game ------ Seed TrapPointBoregun Manual? 0 Play Time 00:49:34 Cumulative 97.4 hours Start 2019.12.19 @ 22:05:38 End 2019.12.19 @ 22:51:09 Sessions 1 Manual Loads 0 Difficulty Rogue Special Mode None Game No. 91 Rogue 91 Adventurer 0 Explorer 0 Win Type - Total 0 Types 0/0/0/0/0/0/0 Lore% 46 Gallery% 62 Achievement% 30 Wizard Run 0 Options --------- ASCII 0 Keyboard 0 Movement Mouse Keybinds 0 Fullscreen 2 Font 18/Terminus Map View 76x50 Tactical HUD 1 Map Filters NONE Filters NONE Steam 1 RUN: 72fc000e-91af-4609-ba68-d29aa20e4e12